fUSD/lending_fUSD_20250426
["ID","MTS","AMOUNT","RATE_DAILY","PERIOD"]
[359075184,1745695838067,-400.0,0.00019591,2]
[359075186,1745695838076,-400.0,0.00019591,2]
[359075188,1745695838086,-409.12,0.00019591,2]
[359075190,1745695838097,-621.97,0.00019591,2]
[359075192,1745695838106,-1507.71,0.00019591,2]
[359075194,1745695838116,-400.0,0.00019591,2]
[359075195,1745695838126,-776.21,0.00019591,2]
[359075197,1745695838135,-1000.21,0.00019591,2]
[359075199,1745695838145,-444.26,0.00019591,2]
[359075201,1745695838154,-875.61,0.00019591,2]
[359075203,1745695838163,-973.83,0.00019591,2]
[359075205,1745695838172,-3154.18,0.00019591,2]
[359075207,1745695838183,-400.0,0.00019591,2]
[359075209,1745695838193,-489.11,0.00019591,2]
[359075211,1745695838202,-400.0,0.00019591,2]
[359075213,1745695838211,-863.8,0.00019591,2]
[359075215,1745695838221,-541.22,0.00019591,2]
[359075217,1745695838231,-400.0,0.00019591,2]
[359075219,1745695838240,-400.0,0.00019591,2]
[359075221,1745695838250,-400.0,0.00019591,2]
[359075222,1745695838259,-400.0,0.00019591,2]
[359075224,1745695838269,-1146.82,0.00019591,2]
[359075226,1745695838279,-688.9,0.00019591,2]
[359075228,1745695838288,-400.0,0.00019591,2]
[359075230,1745695838297,-516.56,0.00019591,2]
[359075232,1745695838307,-400.0,0.00019591,2]
[359075234,1745695838319,-519.32,0.00019591,2]
[359075235,1745695838329,-526.1,0.00019591,2]
[359075236,1745695838339,-464.18,0.00019591,2]
[359075237,1745695838349,-1201.78,0.00019591,2]
[359075238,1745695838359,-521.67,0.00019591,2]
[359075239,1745695838368,-723.45,0.00019591,2]
[359075240,1745695838377,-400.0,0.00019591,2]
[359075241,1745695838387,-400.0,0.00019591,2]
[359075242,1745695838396,-474.13,0.00019591,2]
[359075243,1745695838406,-400.0,0.00019591,2]
[359075244,1745695838416,-646.25,0.00019591,2]
[359075245,1745695838425,-3117.56,0.00019591,2]
[359075246,1745695838434,-1815.91,0.00019591,2]
[359075247,1745695838444,-400.0,0.00019591,2]
[359075248,1745695838454,-400.0,0.00019591,2]
[359075249,1745695838464,-1104.12,0.00019591,2]
[359075250,1745695838473,-730.49,0.00019591,2]
[359075251,1745695838483,-400.0,0.00019591,2]
[359075252,1745695838492,-542.99,0.00019591,2]
[359075253,1745695838502,-559.04,0.00019591,2]
[359075254,1745695838512,-414.97,0.00019591,2]
[359075255,1745695838522,-400.0,0.00019591,2]
[359075256,1745695838532,-848.69,0.00019591,2]
[359075257,1745695838541,-482.1,0.00019591,2]
[359075258,1745695838551,-1074.41,0.00019591,2]
[359075259,1745695838560,-400.0,0.00019591,2]
[359075260,1745695838570,-789.73,0.00019591,2]
[359075261,1745695838579,-937.97,0.00019591,2]
[359075262,1745695838588,-400.0,0.00019591,2]
[359075263,1745695838598,-400.0,0.00019591,2]
[359075264,1745695838608,-426.06,0.00019591,2]
[359075265,1745695838617,-400.0,0.00019591,2]
[359075266,1745695838628,-400.0,0.00019591,2]
[359075267,1745695838637,-7261.22,0.00019591,2]
[359075268,1745695838647,-400.0,0.00019591,2]
[359075269,1745695838656,-681.3,0.00019591,2]
[359075270,1745695838666,-400.0,0.00019591,2]
[359075271,1745695838675,-727.72,0.00019591,2]
[359075272,1745695838686,-99782.14,0.00019591,2]
[359075273,1745695838695,-400.0,0.00019591,2]
[359075274,1745695838705,-689.35,0.00019591,2]
[359075275,1745695838715,-564.43,0.00019591,2]
[359075276,1745695838725,-400.0,0.00019591,2]
[359075277,1745695838735,-634.7,0.00019591,2]
[359075278,1745695838745,-400.0,0.00019591,2]
[359075279,1745695838754,-400.0,0.00019591,2]
[359075280,1745695838764,-525.75,0.00019591,2]
[359075281,1745695838774,-567.66,0.00019591,2]
[359075282,1745695838783,-10574.07,0.00019591,2]
[359075283,1745695838794,-724.21,0.00019591,2]
[359075284,1745695838804,-527.19,0.00019591,2]
[359075285,1745695838814,-423.65,0.00019591,2]
[359075286,1745695838825,-3522.85,0.00019591,2]
[359075287,1745695838835,-635.72,0.00019591,2]
[359075288,1745695838844,-698.33,0.00019591,2]
[359075289,1745695838853,-5603.99,0.00019591,2]
[359075290,1745695838863,-712.83,0.00019591,2]
[359075291,1745695838873,-400.0,0.00019591,2]
[359075292,1745695838884,-429.89,0.00019591,2]
[359075293,1745695838895,-400.0,0.00019591,2]
[359075294,1745695838907,-400.0,0.00019591,2]
[359075295,1745695838916,-647.28,0.00019591,2]
[359075296,1745695838926,-548.1,0.00019591,2]
[359075297,1745695838935,-400.0,0.00019591,2]
[359075298,1745695838945,-819.91,0.00019591,2]
[359075299,1745695838954,-2130.89,0.00019591,2]
[359075300,1745695838963,-400.0,0.00019591,2]
[359075301,1745695838973,-638.99,0.00019591,2]
[359075302,1745695838983,-300.6401073,0.00019591,2]
[359075303,1745695838993,-492.88,0.00019591,2]
[359075304,1745695839002,-400.0,0.00019591,2]
[359075305,1745695839014,-400.0,0.00019591,2]
[359075306,1745695839024,-405.95,0.00019591,2]
[359075307,1745695839035,-400.0,0.00019591,2]
[359075308,1745695839046,-200.0,0.00019591,2]
[359075309,1745695839056,-400.0,0.00019591,2]
[359075310,1745695839068,-500.0,0.00019591,2]
[359075311,1745695839079,-9418.438578,0.00019591,2]
[359075312,1745695839089,-511.02,0.00019591,2]
[359075313,1745695839100,-400.0,0.00019592,2]
[359075314,1745695839110,-400.0,0.00019592,2]
[359075315,1745695839120,-400.0,0.00019592,2]
[359075316,1745695839129,-400.0,0.00019592,2]
[359075317,1745695839139,-400.0,0.00019592,2]
[359075318,1745695839149,-400.0,0.00019592,2]
[359075319,1745695839158,-400.0,0.00019592,2]
[359075320,1745695839168,-587.65,0.00019592,2]
[359075321,1745695839178,-400.0,0.00019592,2]
[359075323,1745695839187,-400.0,0.00019592,2]
[359075324,1745695839197,-400.0,0.00019592,2]
[359075325,1745695839207,-400.0,0.00019592,2]
[359075326,1745695839216,-400.0,0.00019592,2]
[359075327,1745695839226,-400.0,0.00019592,2]
[359075328,1745695839236,-279.89290078,0.00019592,2]
[359075329,1745695839246,-250.0,0.00019592,2]
[359075330,1745695839256,-400.0,0.00019592,2]
[359075331,1745695839266,-400.0,0.00019592,2]
[359075332,1745695839276,-400.0,0.00019592,2]
[359075333,1745695839286,-265.62103783,0.00019592,2]
[359075334,1745695839295,-400.0,0.00019592,2]
[359075335,1745695839304,-550.0,0.00019592,2]
[359075336,1745695839314,-264.82034959,0.00019592,2]
[359075337,1745695839323,-400.0,0.00019592,2]
[359075338,1745695839333,-400.0,0.00019592,2]
[359075339,1745695839342,-400.0,0.00019592,2]
[359075340,1745695839352,-400.0,0.00019592,2]
[359075341,1745695839362,-656.97,0.00019592,2]
[359075342,1745695839371,-192.2041812,0.00019592,2]
[359075343,1745695839382,-400.0,0.00019592,2]
[359075344,1745695839392,-985.75,0.00019592,2]
[359075346,1745695839401,-400.0,0.00019592,2]
[359075348,1745695839412,-400.0,0.00019592,2]
[359075349,1745695839423,-400.0,0.00019592,2]
[359075350,1745695839434,-400.0,0.00019592,2]
[359075351,1745695839444,-513.98,0.00019592,2]
[359075352,1745695839455,-400.0,0.00019592,2]
[359075353,1745695839465,-400.0,0.00019592,2]
[359075354,1745695839474,-400.0,0.00019592,2]
[359075355,1745695839484,-418.32,0.00019592,2]
[359075356,1745695839493,-400.0,0.00019592,2]
[359075357,1745695839503,-400.0,0.00019592,2]
[359075358,1745695839515,-400.0,0.00019592,2]
[359075359,1745695839526,-400.0,0.00019592,2]
[359075360,1745695839535,-400.0,0.00019592,2]
[359075361,1745695839545,-400.0,0.00019592,2]
[359075362,1745695839554,-400.0,0.00019592,2]
[359075363,1745695839564,-400.0,0.00019592,2]
[359075364,1745695839573,-400.0,0.00019592,2]
[359075365,1745695839582,-283.29250345,0.00019592,2]
[359075366,1745695839591,-400.0,0.00019592,2]
[359075367,1745695839601,-400.0,0.00019592,2]
[359075368,1745695839611,-618.06,0.00019592,2]
[359075369,1745695839621,-400.0,0.00019592,2]
[359075370,1745695839633,-400.0,0.00019592,2]
[359075371,1745695839643,-400.0,0.00019592,2]
[359075372,1745695839654,-200.0,0.00019592,2]
[359075373,1745695839665,-930.74,0.00019592,2]
[359075374,1745695839674,-400.0,0.00019592,2]
[359075375,1745695839683,-400.0,0.00019592,2]
[359075376,1745695839694,-623.52,0.00019592,2]
[359075378,1745695839704,-594.75,0.00019592,2]
[359075379,1745695839715,-400.0,0.00019592,2]
[359075380,1745695839725,-453.7093691,0.00019592,2]
[359075381,1745695839735,-400.0,0.00019592,2]
[359075382,1745695839745,-400.0,0.00019592,2]
[359075383,1745695839754,-504.99,0.00019592,2]
[359075384,1745695839764,-200.0,0.00019592,2]
[359075385,1745695839773,-477.54,0.00019592,2]
[359075386,1745695839787,-482.63,0.00019592,2]
[359075387,1745695839797,-400.0,0.00019592,2]
[359075388,1745695839806,-1016.19,0.00019592,2]
[359075389,1745695839817,-400.0,0.00019592,2]
[359075390,1745695839828,-625.6,0.00019592,2]
[359075391,1745695839840,-839.76,0.00019592,2]
[359075392,1745695839853,-707.76,0.00019592,2]
[359075393,1745695839863,-422.56,0.00019592,2]
[359075394,1745695839873,-790.27,0.00019592,2]
[359075395,1745695839884,-400.0,0.00019592,2]
[359075396,1745695839898,-400.0,0.00019592,2]
[359075397,1745695839908,-400.0,0.00019592,2]
[359075398,1745695839918,-400.0,0.00019592,2]
[359075399,1745695839928,-194.57193172,0.00019592,2]
[359075400,1745695839938,-200.0,0.00019592,2]
[359075401,1745695839949,-400.0,0.00019592,2]
[359075408,1745695840200,-400.0,0.00019592,2]
[359075410,1745695840211,-400.0,0.00019592,2]
[359075412,1745695840221,-743.16,0.00019592,2]
[359075414,1745695840231,-1000.0,0.00019592,2]
[359075416,1745695840241,-400.0,0.00019592,2]
[359075418,1745695840251,-400.0,0.00019592,2]
[359075420,1745695840260,-920.33,0.00019592,2]
[359075422,1745695840269,-421.59,0.00019592,2]
[359075424,1745695840279,-547.47,0.00019592,2]
[359075426,1745695840289,-400.0,0.00019592,2]
[359075427,1745695840298,-629.35,0.00019592,2]
[359075429,1745695840308,-400.0,0.00019592,2]
[359075431,1745695840318,-400.0,0.00019592,2]
[359075433,1745695840327,-801.35,0.00019592,2]
[359075435,1745695840337,-400.0,0.00019592,2]
[359075437,1745695840347,-200.0,0.00019592,2]
[359075439,1745695840356,-400.0,0.00019592,2]
[359075441,1745695840366,-424.0,0.00019592,2]
[359075443,1745695840375,-222.4588718,0.00019592,2]
[359075445,1745695840385,-400.0,0.00019592,2]
[359075447,1745695840395,-400.0,0.00019592,2]
[359075449,1745695840406,-660.18,0.00019592,2]
[359075451,1745695840416,-400.0,0.00019592,2]
[359075453,1745695840427,-400.0,0.00019592,2]
[359075455,1745695840437,-497.76,0.00019592,2]
[359075457,1745695840447,-200.0,0.00019592,2]
[359075459,1745695840456,-200.0,0.00019592,2]
[359075461,1745695840466,-400.0,0.00019592,2]
[359075463,1745695840475,-686.56,0.00019592,2]
[359075465,1745695840484,-400.0,0.00019592,2]
[359075467,1745695840494,-200.0,0.00019592,2]
[359075469,1745695840503,-400.0,0.00019592,2]
[359075471,1745695840513,-400.0,0.00019592,2]
[359075473,1745695840523,-400.0,0.00019592,2]
[359075475,1745695840532,-400.0,0.00019592,2]
[359075476,1745695840542,-400.0,0.00019592,2]
[359075477,1745695840551,-400.0,0.00019592,2]
[359075478,1745695840560,-400.0,0.00019592,2]
[359075479,1745695840570,-1612.4,0.00019592,2]
[359075480,1745695840580,-400.0,0.00019592,2]
[359075481,1745695840589,-400.0,0.00019592,2]
[359075482,1745695840599,-400.0,0.00019592,2]
[359075483,1745695840608,-400.0,0.00019592,2]
[359075484,1745695840618,-400.0,0.00019592,2]
[359075485,1745695840628,-400.0,0.00019592,2]
[359075486,1745695840637,-400.0,0.00019592,2]
[359075487,1745695840648,-400.0,0.00019592,2]
[359075488,1745695840658,-400.0,0.00019592,2]
[359075489,1745695840668,-400.0,0.00019592,2]
[359075490,1745695840678,-400.0,0.00019592,2]
[359075491,1745695840687,-507.8992,0.00019592,2]
[359075492,1745695840698,-400.0,0.00019592,2]
[359075493,1745695840707,-361.90949172,0.00019592,2]
[359075494,1745695840716,-623.15,0.00019592,2]
[359075495,1745695840726,-400.0,0.00019592,2]
[359075496,1745695840737,-400.0,0.00019592,2]
[359075497,1745695840748,-512.53306007,0.00019592,2]
[359075498,1745695840758,-568.81,0.00019592,2]
[359075499,1745695840767,-400.0,0.00019592,2]
[359075500,1745695840777,-1841.1,0.00019592,2]
[359075501,1745695840788,-490.68,0.00019592,2]
[359075502,1745695840798,-400.0,0.00019592,2]
[359075503,1745695840808,-803.24,0.00019592,2]
[359075504,1745695840818,-631.82,0.00019592,2]
[359075505,1745695840829,-400.0,0.00019592,2]
[359075506,1745695840839,-400.0,0.00019592,2]
[359075507,1745695840848,-400.0,0.00019592,2]
[359075508,1745695840858,-400.0,0.00019592,2]
[359075509,1745695840867,-642.83,0.00019592,2]
[359075510,1745695840878,-515.12,0.00019592,2]
[359075511,1745695840893,-217.11284851,0.00019592,2]
[359075512,1745695840904,-528.83,0.00019592,2]
[359075513,1745695840915,-400.0,0.00019592,2]
[359075514,1745695840925,-400.0,0.00019592,2]
[359075515,1745695840934,-400.0,0.00019592,2]
[359075516,1745695840944,-796.57,0.00019592,2]
[359075517,1745695840954,-400.0,0.00019592,2]
[359075518,1745695840964,-400.0,0.00019592,2]
[359075519,1745695840974,-678.17,0.00019592,2]
[359075520,1745695840983,-602.54,0.00019592,2]
[359075521,1745695840993,-400.0,0.00019592,2]
[359075522,1745695841003,-400.0,0.00019592,2]
[359075523,1745695841013,-400.0,0.00019592,2]
[359075524,1745695841023,-400.0,0.00019592,2]
[359075525,1745695841032,-734.47,0.00019592,2]
[359075526,1745695841042,-561.83,0.00019592,2]
[359075527,1745695841052,-603.53,0.00019592,2]
[359075528,1745695841062,-400.0,0.00019592,2]
[359075529,1745695841071,-400.0,0.00019592,2]
[359075530,1745695841081,-413.01,0.00019592,2]
[359075531,1745695841090,-450.28,0.00019592,2]
[359075532,1745695841101,-400.0,0.00019592,2]
[359075533,1745695841111,-446.68,0.00019592,2]
[359075534,1745695841120,-782.15,0.00019592,2]
[359075535,1745695841130,-656.94,0.00019592,2]
[359075536,1745695841140,-400.0,0.00019592,2]
[359075537,1745695841149,-400.0,0.00019592,2]
[359075538,1745695841158,-723.28,0.00019592,2]
[359075539,1745695841168,-3505.07,0.00019592,2]
[359075540,1745695841177,-425.0,0.00019592,2]
[359075541,1745695841187,-400.0,0.00019592,2]
[359075542,1745695841196,-400.0,0.00019592,2]
[359075543,1745695841205,-400.0,0.00019592,2]
[359075544,1745695841215,-680.36,0.00019592,2]
[359075545,1745695841224,-577.48,0.00019592,2]
[359075546,1745695841233,-400.0,0.00019592,2]
[359075547,1745695841245,-400.0,0.00019592,2]
[359075548,1745695841255,-400.0,0.00019592,2]
[359075549,1745695841265,-400.0,0.00019592,2]
[359075550,1745695841274,-400.0,0.00019592,2]
[359075551,1745695841284,-400.0,0.00019592,2]
[359075552,1745695841293,-200.0,0.00019592,2]
[359075553,1745695841302,-400.0,0.00019592,2]
[359075554,1745695841311,-744.59,0.00019592,2]
[359075555,1745695841321,-411.21178135,0.00019592,2]
[359075556,1745695841331,-400.0,0.00019592,2]
[359075557,1745695841341,-400.0,0.00019592,2]
[359075558,1745695841351,-527.45,0.00019592,2]
[359075559,1745695841362,-400.0,0.00019592,2]
[359075560,1745695841371,-400.0,0.00019592,2]
[359075561,1745695841381,-400.0,0.00019592,2]
[359075562,1745695841390,-544.81727584,0.00019592,2]
[359075563,1745695841399,-400.0,0.00019592,2]
[359075564,1745695841409,-400.0,0.00019592,2]
[359075565,1745695841419,-400.0,0.00019592,2]
[359075566,1745695841430,-400.0,0.00019592,2]
[359075567,1745695841442,-659.51,0.00019592,2]
[359075568,1745695841451,-400.0,0.00019592,2]
[359075569,1745695841461,-400.0,0.00019592,2]
[359075570,1745695841470,-499.89,0.00019592,2]
[359075571,1745695841479,-400.0,0.00019592,2]
[359075572,1745695841489,-400.0,0.00019592,2]
[359075573,1745695841498,-501.27,0.00019592,2]
[359075574,1745695841507,-400.0,0.00019592,2]
[359075575,1745695841518,-400.0,0.00019592,2]
[359075576,1745695841530,-400.0,0.00019592,2]
[359075577,1745695841541,-400.0,0.00019592,2]
[359075578,1745695841552,-400.0,0.00019592,2]
[359075579,1745695841562,-613.05,0.00019592,2]
[359075580,1745695841573,-400.0,0.00019592,2]
[359075581,1745695841584,-200.0,0.00019592,2]
[359075582,1745695841595,-400.0,0.00019592,2]
[359075583,1745695841605,-400.0,0.00019592,2]
[359075584,1745695841615,-400.0,0.00019592,2]
[359075585,1745695841625,-400.0,0.00019592,2]
[359075586,1745695841635,-400.0,0.00019592,2]
[359075587,1745695841857,-33.02015627,0.00019592,2]
[359075588,1745695841879,-366.97984373,0.00019592,2]
[359075589,1745695841895,-884.35,0.00019592,2]
[359075590,1745695841905,-400.0,0.00019592,2]
[359075591,1745695841916,-417.47,0.00019592,2]
[359075592,1745695841927,-508.94,0.00019592,2]
[359075593,1745695841937,-400.0,0.00019592,2]
[359075594,1745695841946,-400.0,0.00019592,2]
[359075595,1745695841956,-400.0,0.00019592,2]
[359075596,1745695841967,-743.65,0.00019592,2]
[359075597,1745695841978,-831.09,0.00019592,2]
[359075598,1745695841989,-400.0,0.00019592,2]
[359075599,1745695841999,-568.98,0.00019592,2]
[359075600,1745695842009,-400.0,0.00019592,2]
[359075601,1745695842019,-535.75125127,0.00019592,2]
[359075602,1745695842029,-400.0,0.00019592,2]
[359075603,1745695842038,-422.23,0.00019592,2]
[359075604,1745695842049,-400.0,0.00019592,2]
[359075605,1745695842059,-400.0,0.00019592,2]
[359075606,1745695842069,-400.0,0.00019592,2]
[359075607,1745695842081,-400.0,0.00019592,2]
[359075608,1745695842091,-400.0,0.00019592,2]
[359075609,1745695842101,-522.95,0.00019592,2]
[359075610,1745695842110,-464.06,0.00019592,2]
[359075611,1745695842121,-400.0,0.00019592,2]
[359075612,1745695842132,-400.0,0.00019592,2]
[359075613,1745695842141,-400.0,0.00019592,2]
[359075614,1745695842151,-4526.21,0.00019592,2]
[359075615,1745695842161,-857.82,0.00019592,2]
[359075616,1745695842171,-400.0,0.00019592,2]
[359075617,1745695842180,-788.6,0.00019592,2]
[359075618,1745695842190,-400.0,0.00019592,2]
[359075619,1745695842200,-400.0,0.00019592,2]
[359075620,1745695842209,-632.03,0.00019592,2]
[359075621,1745695842219,-440.16,0.00019592,2]
[359075622,1745695842228,-871.71,0.00019592,2]
[359075623,1745695842238,-454.59,0.00019592,2]
[359075624,1745695842248,-400.0,0.00019592,2]
[359075625,1745695842258,-400.0,0.00019592,2]
[359075626,1745695842268,-715.29,0.00019592,2]
[359075627,1745695842277,-873.06,0.00019592,2]
[359075628,1745695842287,-400.0,0.00019592,2]
[359075629,1745695842297,-548.25,0.00019592,2]
[359075630,1745695842307,-400.0,0.00019592,2]
[359075631,1745695842316,-687.98,0.00019592,2]
[359075632,1745695842326,-983.19,0.00019592,2]
[359075633,1745695842336,-400.0,0.00019592,2]
[359075634,1745695842345,-400.0,0.00019592,2]
[359075635,1745695842355,-416.58,0.00019592,2]
[359075636,1745695842365,-400.0,0.00019592,2]
[359075637,1745695842374,-400.0,0.00019592,2]
[359075638,1745695842384,-400.0,0.00019592,2]
[359075639,1745695842394,-4067.32,0.00019592,2]
[359075640,1745695842404,-401.8902112,0.00019592,2]
[359075641,1745695842415,-693.67,0.00019592,2]
[359075642,1745695842426,-238.95627288,0.00019592,2]
[359075643,1745695842436,-402.54,0.00019592,2]
[359075644,1745695842447,-791.64,0.00019592,2]
[359075645,1745695842457,-530.7875257,0.00019592,2]
[359075646,1745695842466,-427.28,0.00019592,2]
[359075647,1745695842477,-584.82,0.00019592,2]
[359075648,1745695842488,-400.0,0.00019592,2]
[359075649,1745695842498,-204.80178463,0.00019592,2]
[359075650,1745695842508,-400.0,0.00019592,2]
[359075651,1745695842517,-400.0,0.00019592,2]
[359075652,1745695842527,-400.0,0.00019592,2]
[359075653,1745695842536,-400.0,0.00019592,2]
[359075654,1745695842546,-200.0,0.00019592,2]
[359075655,1745695842556,-1055.81,0.00019592,2]
[359075656,1745695842566,-425.49,0.00019592,2]
[359075657,1745695842575,-150.0,0.00019592,2]
[359075658,1745695842586,-400.0,0.00019592,2]
[359075659,1745695842596,-500.0,0.00019592,2]
[359075660,1745695842606,-400.0,0.00019592,2]
[359075661,1745695842615,-595.73,0.00019592,2]
[359075662,1745695842625,-236.59596889,0.00019592,2]
[359075663,1745695842635,-400.0,0.00019592,2]
[359075664,1745695842644,-400.0,0.00019592,2]
[359075665,1745695842654,-445.81,0.00019592,2]
[359075666,1745695842664,-400.0,0.00019592,2]
[359075667,1745695842674,-400.0,0.00019592,2]
[359075668,1745695842683,-400.0,0.00019592,2]
[359075669,1745695842694,-400.0,0.00019592,2]
[359075670,1745695842704,-684.95,0.00019592,2]
[359075671,1745695842715,-451.33,0.00019592,2]
[359075672,1745695842725,-461.2,0.00019592,2]
[359075673,1745695842735,-400.0,0.00019592,2]
[359075674,1745695842745,-400.0,0.00019592,2]
[359075675,1745695842755,-507.85781094,0.00019592,2]
[359075676,1745695842765,-400.0,0.00019592,2]
[359075677,1745695842775,-441.36,0.00019592,2]
[359075678,1745695842785,-400.0,0.00019592,2]
[359075679,1745695842795,-698.45,0.00019592,2]
[359075680,1745695842805,-400.0,0.00019592,2]
[359075681,1745695842815,-400.0,0.00019592,2]
[359075682,1745695842824,-315.16605129,0.00019592,2]
[359075683,1745695842834,-400.0,0.00019592,2]
[359075684,1745695842843,-702.15,0.00019592,2]
[359075685,1745695842853,-866.21,0.00019592,2]
[359075686,1745695842863,-700.25,0.00019592,2]
[359075687,1745695842873,-400.0,0.00019592,2]
[359075688,1745695842969,-400.0,0.00019592,2]
[359075689,1745695842979,-400.0,0.00019592,2]
[359075690,1745695842988,-550.68,0.00019592,2]
[359075691,1745695842998,-400.65,0.00019592,2]
[359075692,1745695843007,-400.0,0.00019592,2]
[359075693,1745695843017,-548.82,0.00019592,2]
[359075694,1745695843026,-400.0,0.00019592,2]
[359075695,1745695843036,-839.27,0.00019592,2]
[359075696,1745695843045,-400.0,0.00019592,2]
[359075697,1745695843054,-400.0,0.00019592,2]
[359075698,1745695843064,-400.0,0.00019592,2]
[359075700,1745695843073,-506.77,0.00019592,2]
[359075702,1745695843082,-400.0,0.00019592,2]
[359075704,1745695843091,-400.0,0.00019592,2]
[359075706,1745695843101,-500.0,0.00019592,2]
[359075707,1745695843110,-558.44,0.00019592,2]
[359075709,1745695843119,-400.0,0.00019592,2]
[359075710,1745695843129,-400.0,0.00019592,2]
[359075711,1745695843138,-437.63,0.00019592,2]
[359075712,1745695843147,-400.0,0.00019592,2]
[359075713,1745695843156,-400.0,0.00019592,2]
[359075714,1745695843166,-400.0,0.00019592,2]
[359075715,1745695843175,-400.0,0.00019592,2]
[359075716,1745695843184,-651.16,0.00019592,2]
[359075717,1745695843194,-1190.26,0.00019592,2]
[359075718,1745695843203,-228.21989386,0.00019593,2]
[359075719,1745695843213,-447.10342722,0.00019593,2]
[359075720,1745695843222,-400.0,0.00019593,2]
[359075721,1745695843232,-468.72305869,0.00019593,2]
[359075722,1745695843241,-400.0,0.00019593,2]
[359075723,1745695843251,-415.08,0.00019593,2]
[359075724,1745695843260,-1821.48,0.00019593,2]
[359075725,1745695843270,-633.3,0.00019593,2]
[359075726,1745695843279,-411.42,0.00019593,2]
[359075727,1745695843289,-517.84,0.00019593,2]
[359075728,1745695843298,-400.0,0.00019593,2]
[359075729,1745695843308,-542.55224143,0.00019593,2]
[359075730,1745695843317,-400.0,0.00019593,2]
[359075731,1745695843327,-400.0,0.00019593,2]
[359075732,1745695843337,-400.0,0.00019593,2]
[359075733,1745695843347,-400.0,0.00019593,2]
[359075734,1745695843357,-400.0,0.00019593,2]
[359075735,1745695843367,-469.66,0.00019593,2]
[359075736,1745695843377,-400.0,0.00019593,2]
[359075737,1745695843386,-754.49,0.00019593,2]
[359075738,1745695843396,-689.77,0.00019593,2]
[359075739,1745695843405,-400.0,0.00019593,2]
[359075740,1745695843414,-435.06,0.00019593,2]
[359075741,1745695843424,-400.0,0.00019593,2]
[359075742,1745695843433,-400.0,0.00019593,2]
[359075743,1745695843443,-400.0,0.00019593,2]
[359075744,1745695843453,-451.96,0.00019593,2]
[359075745,1745695843462,-400.0,0.00019593,2]
[359075746,1745695843471,-400.0,0.00019593,2]
[359075747,1745695843480,-400.0,0.00019593,2]
[359075748,1745695843490,-400.0,0.00019593,2]
[359075749,1745695843499,-427.9,0.00019593,2]
[359075750,1745695843509,-400.0,0.00019593,2]
[359075751,1745695843518,-400.0,0.00019593,2]
[359075752,1745695843527,-300.0,0.00019593,2]
[359075753,1745695843537,-560.08,0.00019593,2]
[359075754,1745695843546,-573.56,0.00019593,2]
[359075755,1745695843555,-400.0,0.00019593,2]